bitfinex-derivatives/quotes_BTCF0:USTF0_20220103
["timestamp","ask_amount","ask_price","bid_price","bid_amount"]
[1641211647209,1.58050754,47330.0,47321.0,1.24733567]
[1641211647510,7.54e-06,47330.0,47321.0,1.24733567]
[1641211647712,1.67932328,47341.0,47329.0,1.107]
[1641211647912,1.9164,47347.0,47339.0,0.18]
[1641211648112,1e-08,47343.0,47340.0,1.107]
[1641211648510,1.79491405,47352.0,47342.0,1.56767134]
[1641211648912,1.79491405,47352.0,47347.0,0.001]
[1641211649112,3.8629,47356.0,47347.0,0.001]
[1641211649311,0.02112267,47361.0,47347.0,0.001]
[1641211649511,0.02112267,47361.0,47347.0,1.288]
[1641211649712,0.02112267,47361.0,47347.0,1.107]
[1641211649914,0.18,47360.0,47349.0,1.107]
[1641211650114,0.18,47360.0,47347.0,0.191]
[1641211650115,0.18,47350.0,47347.0,0.191]
[1641211650314,0.24654,47350.0,47347.0,0.191]
[1641211650512,0.24654,47350.0,47349.0,0.14033567]
[1641211650914,0.24754,47350.0,47349.0,0.14033567]
[1641211651315,0.06754,47350.0,47349.0,0.14033567]
[1641211652013,0.24754,47350.0,47349.0,0.14033567]
[1641211652614,0.24754,47350.0,47342.0,0.28067134]
[1641211652816,0.06654,47350.0,47342.0,0.28067134]
[1641211654016,0.06654,47350.0,47342.0,0.45867134]
[1641211654215,0.009794,47351.0,47342.0,0.45867134]
[1641211655416,0.009794,47351.0,47342.0,0.28067134]
[1641211656018,0.009794,47351.0,47342.0,0.45967134]
[1641211657329,0.009794,47351.0,47342.0,0.28067134]
[1641211657922,0.009794,47351.0,47342.0,0.45967134]
[1641211659024,0.009794,47351.0,47343.0,1.107]
[1641211659324,0.2123,47361.0,47344.0,0.02112197]
[1641211659523,0.18,47358.0,47344.0,1.12812197]
[1641211659925,0.18,47358.0,47344.0,1.30512197]
[1641211660125,0.18,47358.0,47344.0,0.19812197]
[1641211660726,0.18,47349.0,47344.0,0.177]
[1641211660926,0.0928,47351.0,47344.0,0.177]
[1641211661332,0.18,47349.0,47342.0,0.28067134]
[1641211661925,0.02112751,47350.0,47342.0,0.46667134]
[1641211662126,0.009794,47349.0,47342.0,0.46667134]
[1641211663025,0.09714391,47348.0,47342.0,0.46667134]
[1641211663226,0.09714391,47348.0,47342.0,0.28067134]
[1641211663827,0.009794,47349.0,47342.0,0.28067134]
[1641211664025,0.009794,47349.0,47342.0,0.46167134]
[1641211664224,0.18,47348.0,47342.0,0.46167134]
[1641211665428,0.009794,47349.0,47342.0,0.28067134]
[1641211666028,0.009794,47349.0,47342.0,0.46067134]
[1641211666431,0.18,47348.0,47342.0,0.46067134]
[1641211666830,0.009794,47349.0,47342.0,0.46067134]
[1641211667430,0.009794,47349.0,47342.0,0.28067134]
[1641211668029,0.009794,47349.0,47342.0,0.46067134]
[1641211668232,1.43738299,47349.0,47344.0,0.82689334]
[1641211668531,1.43738299,47349.0,47345.0,0.5906381]
[1641211669230,0.009794,47349.0,47346.0,0.5906381]
[1641211669832,0.009794,47349.0,47346.0,1.54983044]
[1641211670032,0.009794,47349.0,47346.0,1.63183044]
[1641211670732,0.009794,47349.0,47346.0,0.6726381]
[1641211670936,0.009794,47349.0,47346.0,0.082]
[1641211671335,0.009794,47349.0,47345.0,0.5906381]
[1641211671834,0.18,47348.0,47345.0,0.5906381]
[1641211672034,0.18,47348.0,47345.0,0.7456381]
[1641211672634,0.18,47348.0,47346.0,0.5906381]
[1641211674034,0.18,47348.0,47346.0,0.6916381]
[1641211674235,0.18,47348.0,47346.0,0.101]
[1641211675236,0.18,47348.0,47345.0,0.5906381]
[1641211675435,0.02112981,47347.0,47345.0,0.5906381]
[1641211675635,0.001,47346.0,47344.0,0.82689334]
[1641211675935,0.18,47345.0,47344.0,0.82689334]
[1641211676138,0.181,47345.0,47344.0,0.82689334]
[1641211676839,0.181,47345.0,47342.0,1.32161187]
[1641211677038,0.001,47343.0,47342.0,0.14033567]
[1641211677637,0.181,47343.0,47342.0,0.14033567]
[1641211678438,0.001,47343.0,47342.0,0.14033567]
[1641211679239,0.181,47343.0,47342.0,0.14033567]
[1641211680149,0.001,47343.0,47342.0,0.14033567]
[1641211682054,0.001,47343.0,47342.0,0.26633567]
[1641211683252,0.001,47343.0,47342.0,0.14033567]
[1641211683752,0.08372981,47344.0,47342.0,0.14033567]
[1641211683951,0.08372981,47344.0,47342.0,0.24333567]
[1641211684353,0.02112981,47347.0,47342.0,0.24333567]
[1641211685254,0.02112981,47347.0,47342.0,0.14033567]
[1641211686056,0.02112981,47347.0,47342.0,0.31333567]
[1641211687459,0.02112981,47347.0,47342.0,0.14033567]
[1641211687962,0.18,47345.0,47342.0,0.31033567]
[1641211688761,0.02112981,47347.0,47342.0,0.31033567]
[1641211689163,0.18,47345.0,47342.0,0.31033567]
[1641211689561,0.02112981,47347.0,47342.0,0.14033567]
[1641211689764,0.18,47343.0,47342.0,0.14033567]
[1641211689962,0.18,47343.0,47342.0,0.27633567]
[1641211690964,0.18,47346.0,47342.0,0.27633567]
[1641211691466,0.18,47346.0,47342.0,0.14033567]
[1641211691964,0.18,47346.0,47342.0,0.23233567]
[1641211693267,0.18,47346.0,47342.0,0.14033567]
[1641211694067,0.18,47346.0,47342.0,0.31633567]
[1641211695474,0.18,47346.0,47342.0,0.14033567]
[1641211696073,0.18,47346.0,47342.0,0.31333567]
[1641211697277,1.54660268,47345.0,47342.0,0.31333567]
[1641211698075,1.54660268,47345.0,47342.0,0.30933567]
[1641211699275,1.54660268,47345.0,47342.0,0.14033567]
[1641211699975,1.72660268,47346.0,47342.0,0.14033567]
[1641211700177,1.72660268,47346.0,47342.0,0.32133567]
[1641211701476,1.72660268,47346.0,47342.0,0.14033567]
[1641211702077,1.72660268,47346.0,47342.0,0.32033567]
[1641211703281,1.54660268,47346.0,47342.0,0.32033567]
[1641211703480,1.54660268,47346.0,47342.0,0.14033567]
[1641211704080,1.54660268,47346.0,47342.0,0.31833567]
[1641211705285,1.54660268,47346.0,47342.0,0.178]
[1641211705484,1.63840268,47346.0,47336.0,1.24733567]
[1641211705684,1.54660268,47345.0,47336.0,1.24733567]
[1641211706083,1.54660268,47345.0,47336.0,1.42333567]
[1641211706284,0.18,47344.0,47336.0,0.31633567]
[1641211706485,1.43875157,47338.0,47336.0,0.31633567]
[1641211707286,0.189794,47344.0,47336.0,0.31633567]
[1641211707489,0.20113185,47340.0,47336.0,0.14033567]
[1641211707686,0.02113185,47340.0,47336.0,0.14033567]
[1641211708086,0.02113185,47340.0,47336.0,0.28433567]
[1641211708487,0.08470259,47341.0,47336.0,0.28433567]
[1641211708688,0.0317,47349.0,47340.0,0.36]
[1641211708890,0.20982332,47367.0,47349.0,1.107]
[1641211709187,0.20982332,47367.0,47360.0,0.46067134]
[1641211709387,1.79491405,47364.0,47360.0,0.54991134]
[1641211709587,1.79491405,47364.0,47363.0,0.18]
[1641211709787,1.79491405,47364.0,47363.0,1.287]
[1641211710189,1.79491405,47364.0,47363.0,1.477]
[1641211710995,1.9135,47369.0,47363.0,1.477]
[1641211711193,0.02111849,47371.0,47363.0,1.477]
[1641211711394,0.02111849,47371.0,47366.0,0.14033567]
[1641211711591,0.02111849,47371.0,47366.0,0.32033567]
[1641211711592,0.001,47367.0,47366.0,0.32033567]
[1641211712106,0.001,47367.0,47366.0,0.50033567]
[1641211713498,0.001,47367.0,47366.0,0.32033567]
[1641211714097,0.001,47367.0,47366.0,0.49633567]
[1641211714898,1.55853842,47367.0,47366.0,0.49633567]
[1641211715399,1.55853842,47367.0,47366.0,0.32033567]
[1641211715599,0.001,47367.0,47366.0,0.32033567]
[1641211716199,0.001,47367.0,47366.0,0.49433567]
[1641211716501,0.001,47367.0,47366.0,0.31433567]
[1641211716700,1.55852951,47367.0,47366.0,0.31433567]
[1641211717303,0.001,47367.0,47366.0,0.31433567]
[1641211717504,0.001,47367.0,47366.0,0.14033567]
[1641211718006,0.001,47367.0,47366.0,0.32033567]
[1641211718200,0.001,47367.0,47366.0,0.14033567]
[1641211718400,0.001,47367.0,47366.0,0.32033567]
[1641211718601,0.001,47367.0,47366.0,0.14033567]
[1641211718802,0.02312056,47367.0,47366.0,0.14033567]
[1641211719000,0.03291456,47367.0,47360.0,0.14033567]
[1641211719200,0.001,47361.0,47353.0,0.59645898]
[1641211719400,0.071124,47361.0,47354.0,0.14033567]
[1641211719623,0.001,47355.0,47354.0,0.14033567]
[1641211719822,0.002,47355.0,47354.0,0.14033567]
[1641211720226,0.174,47355.0,47354.0,0.29833567]
[1641211720524,0.19512748,47355.0,47354.0,0.29833567]
[1641211720723,0.19612748,47355.0,47354.0,0.29833567]
[1641211721322,0.25448355,47355.0,47354.0,0.29833567]
[1641211721521,1.63932121,47355.0,47354.0,0.14033567]
[1641211721923,1.63832121,47355.0,47354.0,0.14033567]
[1641211722123,1.83032121,47355.0,47354.0,0.14033567]
[1641211722524,0.27248355,47355.0,47354.0,0.14033567]
[1641211722823,0.27148355,47355.0,47354.0,0.14033567]
[1641211723026,0.27248355,47355.0,47354.0,0.14033567]
[1641211723224,1.82932121,47355.0,47354.0,0.14033567]
[1641211723424,1.63832121,47355.0,47354.0,0.14033567]
[1641211724225,1.83032121,47355.0,47354.0,0.14033567]
[1641211724628,0.27248355,47355.0,47354.0,0.14033567]
[1641211725426,0.08048355,47355.0,47354.0,0.14033567]
[1641211726229,0.27148355,47355.0,47354.0,0.14033567]
[1641211726440,1.59656089,47367.0,47354.0,2.22733567]
[1641211726638,2.38550684,47406.0,47366.0,0.98]
[1641211726833,0.15335074,47403.0,47399.0,0.18]
[1641211727131,0.65259164,47405.0,47402.0,1.467]
[1641211727331,0.80048178,47406.0,47404.0,0.28067134]
[1641211727631,0.80048178,47406.0,47405.0,1.287]
[1641211728233,0.80048178,47406.0,47405.0,1.475]
[1641211728632,0.02109765,47418.0,47405.0,1.475]
[1641211728833,0.02109765,47418.0,47405.0,1.295]
[1641211729245,0.02109765,47418.0,47408.0,1.287]
[1641211729532,0.02109765,47418.0,47413.0,0.18]
[1641211729732,0.02109765,47418.0,47413.0,0.26575]
[1641211729933,0.02109765,47418.0,47414.0,0.06]
[1641211730234,0.02109765,47418.0,47414.0,0.18]
[1641211730532,0.02109765,47418.0,47413.0,0.27875]
[1641211730735,0.02109765,47418.0,47414.0,0.18]
[1641211730935,0.02109765,47418.0,47413.0,0.27875]
[1641211731134,0.14033567,47420.0,47413.0,0.27875]
[1641211731337,0.02109432,47426.0,47419.0,0.28067134]
[1641211731534,0.14033567,47440.0,47419.0,0.28067134]
[1641211731733,0.02109473,47425.0,47419.0,0.46067134]
[1641211732134,0.02109473,47425.0,47419.0,0.47367134]
[1641211732333,0.02109473,47425.0,47419.0,0.65367134]
[1641211732533,0.02109306,47429.0,47419.0,0.65367134]
[1641211733034,0.02109306,47429.0,47420.0,1.107]
[1641211733236,0.02109306,47429.0,47420.0,1.287]
[1641211733736,0.02109306,47429.0,47420.0,0.18]
[1641211733936,0.02109501,47424.0,47419.0,0.28067134]
[1641211734136,0.02209851,47420.0,47408.0,0.77645898]
[1641211734337,0.02109851,47420.0,47412.0,0.59645898]
[1641211734535,0.001,47415.0,47412.0,0.59645898]
[1641211734735,0.001,47413.0,47412.0,0.59645898]
[1641211735637,0.001,47413.0,47410.0,0.14033567]
[1641211735839,0.05778,47415.0,47410.0,0.14033567]
[1641211736237,0.05778,47415.0,47410.0,0.33233567]
[1641211736637,0.09400431,47417.0,47410.0,0.33233567]
[1641211736837,0.02109851,47420.0,47410.0,0.33233567]
[1641211737438,0.02109851,47420.0,47410.0,0.14033567]
[1641211738239,0.02109851,47420.0,47410.0,0.33233567]
[1641211738454,0.09188334,47419.0,47410.0,0.33233567]
[1641211738738,0.16510334,47419.0,47410.0,0.33233567]
[1641211738938,0.16510334,47419.0,47411.0,0.11972118]
[1641211740341,0.02110059,47412.0,47411.0,0.30772118]
[1641211740538,0.03189459,47412.0,47411.0,0.188]
[1641211740939,0.08581781,47412.0,47411.0,0.188]
[1641211741538,0.22615348,47412.0,47403.0,1.107]
[1641211741740,0.22515348,47412.0,47403.0,1.107]
[1641211741939,0.22515348,47412.0,47404.0,0.11974282]
[1641211742339,0.22515348,47412.0,47403.0,1.292]
[1641211742539,0.22515348,47412.0,47405.0,0.11974141]
[1641211742941,0.22515348,47412.0,47404.0,0.11974141]
[1641211743645,0.21535948,47412.0,47405.0,1.107]
[1641211744241,0.21535948,47412.0,47406.0,1.22674141]
[1641211744441,0.16143626,47412.0,47410.0,0.18]
[1641211744642,0.16143626,47412.0,47406.0,1.22674141]
[1641211744841,0.096584,47411.0,47407.0,0.11974141]
[1641211745442,0.096584,47411.0,47406.0,0.11974141]
[1641211745843,0.096584,47411.0,47408.0,0.11974141]
[1641211746245,0.096584,47411.0,47406.0,0.194]
[1641211746444,0.096584,47411.0,47406.0,1.301]
[1641211746642,0.096584,47411.0,47407.0,1.287]
[1641211747143,0.096584,47411.0,47408.0,0.11972392]
[1641211747542,0.096584,47411.0,47410.0,0.18]
[1641211748144,0.096584,47411.0,47410.0,0.48972392]
[1641211749543,0.096584,47411.0,47410.0,0.11972392]
[1641211749943,0.096584,47411.0,47408.0,0.11972392]
[1641211750145,0.096584,47411.0,47410.0,0.191]
[1641211750347,0.096584,47411.0,47410.0,0.371]
[1641211750747,0.096584,47411.0,47410.0,1.59772392]
[1641211751250,0.02110059,47412.0,47410.0,1.59772392]
[1641211751647,0.02110059,47412.0,47411.0,0.11972392]
[1641211752247,0.02110059,47412.0,47411.0,0.30872392]
[1641211752447,0.05192,47428.0,47411.0,1.41572392]
[1641211752650,0.02109811,47417.0,47415.0,1.287]
[1641211753048,0.02109811,47417.0,47416.0,0.11972392]
[1641211753448,0.02109811,47417.0,47416.0,1.41912774]
[1641211753648,0.02109811,47417.0,47416.0,1.55946341]
[1641211754149,0.02109811,47417.0,47416.0,1.40575048]
[1641211755049,0.02209811,47417.0,47416.0,1.40575048]
[1641211755450,0.02109811,47417.0,47416.0,1.40575048]
[1641211755650,0.02109811,47417.0,47416.0,1.21775048]
[1641211756151,0.02109811,47417.0,47416.0,1.40975048]
[1641211756951,0.02109811,47417.0,47416.0,1.29002656]
[1641211757752,0.05687234,47420.0,47416.0,1.09802656]
[1641211757953,0.02109871,47417.0,47416.0,1.09802656]
[1641211758154,0.02109871,47417.0,47416.0,0.32733567]
[1641211758555,0.02109871,47417.0,47416.0,0.50733567]
[1641211758755,0.02109871,47417.0,47416.0,1.61433567]
[1641211758953,0.02109468,47425.0,47416.0,1.61433567]
[1641211759156,0.02109468,47425.0,47416.0,1.49481567]
[1641211759352,0.02109468,47425.0,47423.0,0.18]
[1641211759551,0.02109468,47425.0,47420.0,1.287]
[1641211759752,0.02109468,47425.0,47424.0,0.14033567]
[1641211759952,0.02109468,47425.0,47424.0,1.42733567]
[1641211760157,1.8601,47443.0,47424.0,1.60733567]
[1641211760353,1.8601,47443.0,47432.0,1.107]
[1641211760553,0.3397,47446.0,47432.0,1.35456]
[1641211760753,1.834,47459.0,47432.0,1.23456]
[1641211761167,0.02108594,47445.0,47432.0,1.35456]
[1641211761364,0.02108594,47445.0,47432.0,1.17456]
[1641211761564,0.02108594,47445.0,47436.0,0.18]
[1641211761866,0.02108594,47445.0,47444.0,0.14033567]
[1641211762064,0.02208594,47445.0,47444.0,0.14033567]
[1641211763867,0.02108594,47445.0,47444.0,0.20033567]
[1641211764069,0.02108594,47445.0,47444.0,0.14033567]
[1641211764369,0.07547662,47449.0,47444.0,0.32833567]
[1641211764566,0.07547662,47449.0,47444.0,0.50833567]
[1641211764567,0.04108426,47449.0,47444.0,0.50833567]
[1641211764768,0.04108426,47449.0,47446.0,0.18]
[1641211764966,0.001,47447.0,47446.0,0.18]
[1641211765364,0.001,47447.0,47444.0,0.32833567]
[1641211765566,0.04108426,47449.0,47444.0,0.14033567]
[1641211765766,0.04108426,47449.0,47444.0,1.24733567]
[1641211765965,0.04108426,47449.0,47445.0,0.18]
[1641211766166,0.04108426,47449.0,47444.0,0.14033567]
[1641211766365,0.04108426,47449.0,47444.0,0.33233567]
[1641211767068,0.04108426,47449.0,47447.0,1.107]
[1641211767265,0.001,47448.0,47445.0,0.18]
[1641211767466,0.04108426,47449.0,47445.0,0.18]
[1641211767867,0.04108426,47449.0,47444.0,0.14033567]
[1641211768070,0.04108426,47449.0,47444.0,1.24733567]
[1641211768271,0.04108426,47449.0,47445.0,0.192]
[1641211768972,0.04108426,47449.0,47445.0,1.299]
[1641211769574,0.04108426,47449.0,47445.0,1.107]
[1641211769972,0.04108426,47449.0,47444.0,0.32033567]
[1641211770273,0.04108426,47449.0,47445.0,0.193]
[1641211770474,0.06743246,47448.0,47445.0,0.193]
[1641211770672,0.02,47449.0,47445.0,0.193]
[1641211771072,0.02,47449.0,47448.0,0.18]
[1641211771273,0.021,47449.0,47448.0,0.18]
[1641211772079,0.02,47449.0,47448.0,1.287]
[1641211772275,0.02,47449.0,47448.0,1.54472]
[1641211772476,0.02,47449.0,47448.0,0.43772]
[1641211772675,0.02,47449.0,47448.0,0.43672]
[1641211772875,0.02,47449.0,47448.0,0.43772]
[1641211773078,0.02,47449.0,47448.0,0.43672]
[1641211773276,0.02,47449.0,47448.0,0.25672]
[1641211773476,0.10592024,47449.0,47448.0,0.19]
[1641211773679,0.02,47449.0,47448.0,1.477]
[1641211773878,0.02,47449.0,47448.0,0.09065]
[1641211774078,0.02,47449.0,47448.0,0.08965]
[1641211774278,0.02,47449.0,47448.0,0.28365]
[1641211775279,0.02,47449.0,47448.0,0.194]
[1641211775480,0.02,47449.0,47448.0,1.301]
[1641211775680,0.02,47449.0,47447.0,0.18]
[1641211776281,0.02,47449.0,47447.0,0.371]
[1641211776481,0.02,47449.0,47448.0,1.107]
[1641211777286,0.02,47449.0,47447.0,0.371]
[1641211777684,0.02,47449.0,47448.0,1.107]
[1641211778287,0.02,47449.0,47448.0,0.193]
[1641211778484,0.10828793,47449.0,47448.0,0.193]
[1641211779585,0.10828793,47449.0,47447.0,0.18]
[1641211780286,0.001,47448.0,47447.0,0.369]
[1641211780887,0.001,47448.0,47447.0,0.37]
[1641211781287,0.001,47448.0,47447.0,0.369]
[1641211781487,0.001,47448.0,47447.0,0.37]
[1641211781687,0.001,47448.0,47447.0,0.181]
[1641211782189,0.001,47448.0,47447.0,0.369]
[1641211782389,0.001,47448.0,47447.0,1.476]
[1641211782989,0.10828793,47449.0,47447.0,1.476]
[1641211783190,0.10828793,47449.0,47447.0,0.368]
[1641211783588,0.10828793,47449.0,47447.0,0.18]
[1641211783992,0.001,47448.0,47444.0,0.14033567]
[1641211784190,0.001,47445.0,47444.0,0.14033567]
[1641211784390,0.001,47445.0,47444.0,0.14133567]
[1641211784591,0.001,47445.0,47444.0,0.32133567]
[1641211784791,0.001,47445.0,47444.0,0.32033567]
[1641211786094,0.001,47445.0,47444.0,0.32133567]
[1641211786294,0.001,47445.0,47444.0,0.51333567]
[1641211787393,0.001,47445.0,47444.0,1.62033567]
[1641211787596,0.001,47445.0,47444.0,1.42733567]
[1641211788196,0.001,47445.0,47444.0,0.32033567]
[1641211788395,0.001,47445.0,47444.0,1.61933567]
[1641211789395,0.08013178,47448.0,47444.0,1.61933567]
[1641211789695,0.08013178,47448.0,47444.0,0.14033567]
[1641211789895,0.08013178,47448.0,47444.0,0.32033567]
[1641211790099,0.08013178,47448.0,47447.0,0.18]
[1641211790296,0.08113178,47448.0,47447.0,0.18]
[1641211791196,0.08113178,47448.0,47444.0,0.33133567]
[1641211791396,0.08013178,47448.0,47444.0,0.33133567]
[1641211791597,0.08013178,47448.0,47445.0,0.18]
[1641211792198,0.08013178,47448.0,47444.0,0.14033567]
[1641211792399,0.08013178,47448.0,47445.0,0.187]
[1641211792800,0.001,47446.0,47445.0,0.367]
[1641211793002,0.08013178,47448.0,47445.0,0.368]
[1641211793307,0.001,47446.0,47445.0,0.187]
[1641211793507,0.001,47446.0,47445.0,0.188]
[1641211793708,0.001,47446.0,47445.0,0.181]
[1641211793911,0.08013178,47448.0,47445.0,0.001]
[1641211794304,0.08013178,47448.0,47445.0,0.187]
[1641211794723,0.001,47446.0,47445.0,0.187]
[1641211794923,0.001,47446.0,47445.0,0.188]
[1641211795319,0.08013178,47448.0,47445.0,0.188]
[1641211795519,0.08013178,47448.0,47445.0,0.187]
[1641211796124,0.001,47446.0,47445.0,0.187]
[1641211796323,0.001,47446.0,47445.0,0.369]
[1641211796524,0.001,47446.0,47445.0,0.368]
[1641211796724,0.08013178,47448.0,47445.0,0.368]
[1641211797728,0.08013178,47448.0,47444.0,0.14033567]
[1641211797926,0.08013178,47448.0,47445.0,0.18]
[1641211798226,0.08013178,47448.0,47444.0,0.14033567]
[1641211798432,0.08013178,47448.0,47444.0,0.32933567]
[1641211798827,0.08013178,47448.0,47447.0,0.18]
[1641211799027,0.08113178,47448.0,47444.0,0.32933567]
[1641211799226,0.08013178,47448.0,47444.0,0.32933567]
[1641211799435,0.08013178,47448.0,47444.0,0.50933567]
[1641211799636,0.001,47445.0,47444.0,0.32033567]
[1641211799828,0.001,47445.0,47444.0,0.14133567]
[1641211800240,0.001,47445.0,47444.0,0.32133567]
[1641211800428,0.001,47445.0,47444.0,0.33133567]
[1641211801029,0.08013178,47448.0,47444.0,0.33133567]
[1641211801431,0.001,47445.0,47444.0,0.33133567]
[1641211801631,0.001,47445.0,47444.0,0.14133567]
[1641211802029,0.08013178,47448.0,47444.0,0.14133567]
[1641211802431,0.08013178,47448.0,47444.0,0.32933567]
[1641211802834,0.08013178,47448.0,47447.0,0.18]
[1641211803032,0.08113178,47448.0,47444.0,0.32933567]
[1641211803233,0.08013178,47448.0,47444.0,0.32933567]
[1641211803633,0.001,47445.0,47444.0,0.14033567]
[1641211804033,0.08013178,47448.0,47444.0,0.14033567]
[1641211804233,0.001,47445.0,47444.0,0.14033567]
[1641211804433,0.001,47445.0,47444.0,0.33233567]
[1641211804640,0.08013178,47448.0,47444.0,0.33233567]
[1641211804833,0.08013178,47448.0,47447.0,0.18]
[1641211805032,0.08113178,47448.0,47444.0,0.51133567]
[1641211805235,0.08013178,47448.0,47444.0,0.51133567]
[1641211805435,0.08013178,47448.0,47444.0,0.33133567]
[1641211805633,0.08013178,47448.0,47444.0,0.14033567]
[1641211806232,0.001,47445.0,47444.0,0.14033567]
[1641211806432,0.08013178,47448.0,47444.0,0.33233567]
[1641211806833,0.08013178,47448.0,47447.0,0.18]
[1641211807033,0.08113178,47448.0,47446.0,0.06726]
[1641211807233,0.001,47447.0,47446.0,0.06726]
[1641211808135,0.001,47447.0,47444.0,0.14033567]
[1641211808333,0.08013178,47448.0,47446.0,0.185]
[1641211808534,0.001,47447.0,47446.0,0.185]
[1641211809135,0.08013178,47448.0,47446.0,0.365]
[1641211809335,0.02,47449.0,47446.0,0.365]
[1641211809534,0.001,47447.0,47446.0,0.365]
[1641211809734,0.001,47447.0,47446.0,0.18]
[1641211810134,0.02,47449.0,47446.0,0.18]
[1641211810335,0.001,47447.0,47446.0,0.369]
[1641211810936,0.02,47449.0,47446.0,1.656]
[1641211811137,0.0210812,47456.0,47446.0,1.656]
[1641211811337,0.0210812,47456.0,47455.0,1.287]
[1641211811537,0.0220812,47456.0,47455.0,1.34562]
[1641211812036,0.0210812,47456.0,47455.0,1.34562]
[1641211812536,0.07186034,47461.0,47455.0,1.53462]
[1641211812537,0.02107924,47460.0,47455.0,1.53462]
[1641211812736,1.9066,47466.0,47459.0,1.287]
[1641211812938,0.02107783,47463.0,47459.0,1.287]
[1641211813136,0.02107783,47463.0,47461.0,0.001]
[1641211813340,0.001,47462.0,47459.0,1.107]
[1641211813538,0.02107783,47463.0,47462.0,1.107]
[1641211813737,0.02207783,47463.0,47462.0,1.107]
[1641211814438,0.02207783,47463.0,47462.0,1.294]
[1641211815038,0.02207783,47463.0,47462.0,0.187]
[1641211815238,0.02207783,47463.0,47462.0,1.294]
[1641211815638,0.02207783,47463.0,47462.0,1.107]
[1641211816438,0.02207783,47463.0,47462.0,1.296]
[1641211817040,0.05882104,47469.0,47462.0,1.476]
[1641211817244,0.1119,47493.0,47468.0,0.36]
[1641211817444,0.1119,47493.0,47489.0,0.18]
[1641211817641,0.009794,47494.0,47489.0,1.36743]
[1641211817840,1.8953,47499.0,47489.0,1.36743]
[1641211818040,0.14033567,47495.0,47489.0,0.26043]
[1641211818445,0.18,47493.0,47489.0,0.182]
[1641211818643,0.009794,47492.0,47489.0,0.182]
[1641211819241,0.001,47490.0,47489.0,0.182]
[1641211819443,0.14033567,47495.0,47489.0,1.289]
[1641211819644,0.14033567,47495.0,47488.0,0.0707]
[1641211819844,0.14033567,47495.0,47484.0,0.14033567]
[1641211820147,0.14033567,47495.0,47485.0,1.107]
[1641211820845,0.14033567,47495.0,47484.0,0.32733567]
[1641211821244,0.18,47493.0,47484.0,0.32733567]
[1641211821447,0.02106535,47492.0,47484.0,0.32733567]
[1641211821644,1.07395135,47492.0,47484.0,0.14033567]
[1641211822245,1.07395135,47492.0,47485.0,1.107]
[1641211822845,1.07395135,47492.0,47484.0,0.33133567]
[1641211823247,1.07395135,47492.0,47484.0,1.43833567]
[1641211823647,1.07395135,47492.0,47484.0,1.24733567]
[1641211823847,1.07395135,47492.0,47485.0,0.18]
[1641211824047,1.052886,47492.0,47491.0,0.001]
[1641211824647,1.052886,47492.0,47485.0,0.186]
[1641211825450,0.20106954,47486.0,47485.0,0.186]
[1641211825651,0.21086354,47486.0,47485.0,0.186]
[1641211825849,1.26381654,47486.0,47470.0,0.58477388]
[1641211826550,0.001,47481.0,47470.0,0.58477388]
[1641211826849,1.063868,47480.0,47470.0,0.58477388]
[1641211827050,1.062868,47480.0,47470.0,0.58477388]
[1641211827451,1.14418975,47480.0,47470.0,0.58477388]
[1641211827652,1.14418975,47480.0,47469.0,1.12806757]
[1641211828052,1.14518975,47480.0,47469.0,1.12806757]
[1641211828553,1.32618975,47480.0,47469.0,1.12806757]
[1641211829753,1.14518975,47480.0,47469.0,1.12806757]
[1641211830155,1.14518975,47480.0,47469.0,0.02106757]
[1641211830555,1.32918975,47480.0,47469.0,0.02106757]
[1641211830754,1.32918975,47480.0,47479.0,0.14133567]
[1641211831355,1.32918975,47480.0,47479.0,0.14033567]
[1641211831557,1.41611975,47480.0,47479.0,0.001]
[1641211831754,1.23211975,47480.0,47479.0,0.001]
[1641211831955,1.23211975,47480.0,47467.0,0.14033567]
[1641211832154,1.23211975,47480.0,47462.0,0.81868343]
[1641211832155,0.18,47471.0,47462.0,0.81868343]
[1641211832355,0.02107587,47469.0,47463.0,0.58477388]
[1641211832555,0.10881587,47469.0,47467.0,0.183]
[1641211832755,0.819331,47468.0,47467.0,0.183]
[1641211832957,0.009794,47467.0,47460.0,1.30988342]
[1641211833156,0.02108026,47461.0,47460.0,0.23678342]
[1641211833355,0.02108026,47461.0,47460.0,0.09644775]
[1641211833556,0.65386526,47461.0,47460.0,0.09644775]
[1641211833755,0.65286526,47461.0,47457.0,0.58156662]
[1641211834156,0.18,47460.0,47457.0,0.58156662]
[1641211834554,1.053552,47459.0,47455.0,0.81419327]
[1641211834755,0.02108234,47458.0,47449.0,1.28640376]
[1641211834955,0.02108234,47458.0,47448.0,0.14033567]
[1641211835155,1.029154,47457.0,47448.0,0.14033567]
[1641211835356,1.029154,47457.0,47456.0,1.107]
[1641211835557,0.182,47461.0,47456.0,1.19803]
[1641211835955,0.02107711,47466.0,47457.0,0.18]
[1641211836155,1.053552,47460.0,47459.0,1.24733567]
[1641211836555,0.20607711,47466.0,47459.0,1.24733567]
[1641211837056,0.20607711,47466.0,47459.0,0.14033567]
[1641211837256,1.053463,47465.0,47459.0,0.14033567]
[1641211838155,0.05488436,47464.0,47459.0,0.14033567]
[1641211838555,1.053463,47463.0,47459.0,0.14033567]
[1641211838855,1.053463,47463.0,47459.0,1.24733567]
[1641211840155,1.053463,47463.0,47459.0,0.14033567]
[1641211840555,1.238463,47463.0,47459.0,1.24733567]
[1641211841056,0.009794,47462.0,47459.0,0.14033567]
[1641211841855,0.009794,47462.0,47461.0,0.001]
[1641211842057,0.03087329,47462.0,47461.0,0.001]
[1641211842257,1.08435829,47462.0,47459.0,0.14033567]
[1641211842456,1.26435829,47462.0,47461.0,0.001]
[1641211842857,1.34932321,47462.0,47461.0,0.001]
[1641211843061,1.34932321,47462.0,47456.0,0.58226312]
[1641211843257,1.34932321,47462.0,47461.0,0.001]